fUSD/lending_fUSD_20251017
["ID","MTS","AMOUNT","RATE_DAILY","PERIOD"]
[391574169,1760670632997,-200.0,0.00024057,2]
[391574170,1760670633008,-164.77,0.00024327,2]
[391574171,1760670633018,-2000.0,0.000244,2]
[391574172,1760670633028,-229.95,0.00024479,2]
[391574173,1760670633038,-150.0,0.00024658,4]
[391574174,1760670633047,-150.0,0.00024658,4]
[391574175,1760670633057,-150.0,0.00024658,4]
[391574176,1760670633067,-150.0,0.00024658,4]
[391574177,1760670633076,-150.0,0.00024658,4]
[391574178,1760670633086,-150.0,0.00024658,4]
[391574179,1760670633096,-150.0,0.00024658,4]
[391574180,1760670633106,-150.0,0.00024658,4]
[391574181,1760670633115,-150.0,0.00024658,4]
[391574182,1760670633124,-150.0,0.00024658,4]
[391574183,1760670633134,-150.0,0.00024658,4]
[391574184,1760670633143,-150.0,0.00024658,4]
[391574185,1760670633154,-150.0,0.00024658,4]
[391574186,1760670633163,-161.90960499,0.00024658,4]
[391574187,1760670633174,-150.0,0.00024658,4]
[391574188,1760670633184,-150.0,0.00024658,4]
[391574189,1760670633194,-150.0,0.00024658,4]
[391574190,1760670633203,-150.0,0.00024658,4]
[391574191,1760670633213,-10115.4876267,0.00024664,2]
[391574192,1760670633223,-150.0,0.00024688,4]
[391574193,1760670633233,-150.0,0.00024691,4]
[391574194,1760670633243,-150.0,0.00024696,4]
[391574195,1760670633255,-150.0,0.00024711,4]
[391574196,1760670633265,-150.0,0.00024716,4]
[391574197,1760670633275,-150.0,0.00024716,4]
[391574198,1760670633284,-150.0,0.00024719,4]
[391574199,1760670633295,-150.0,0.0002472,4]
[391574200,1760670633304,-150.0,0.00024724,4]
[391574201,1760670633314,-150.0,0.0002473,4]
[391574202,1760670633324,-150.0,0.00024734,4]
[391574203,1760670633335,-150.0,0.00024735,4]
[391574204,1760670633344,-150.0,0.0002475,4]
[391574205,1760670633354,-150.0,0.00024758,4]
[391574206,1760670633364,-1766.10338874,0.00024763,10]
[391574207,1760670633375,-167.92,0.00024764,2]
[391574208,1760670633385,-152.0,0.00024765,3]
[391574209,1760670633395,-150.0,0.00024765,4]
[391574210,1760670633406,-500.0,0.00024773,2]
[391574211,1760670633415,-500.67901467,0.00024773,2]
[391574212,1760670633425,-500.0,0.00024773,2]
[391574213,1760670633435,-500.0,0.00024773,2]
[391574214,1760670633445,-501.97573983,0.00024773,2]
[391574215,1760670633454,-500.76547992,0.00024773,2]
[391574216,1760670633463,-500.0,0.00024773,2]
[391574217,1760670633473,-501.95200536,0.00024773,2]
[391574218,1760670633484,-501.42571164,0.00024773,2]
[391574219,1760670633494,-502.12182385,0.00024773,2]
[391574220,1760670633504,-500.0,0.00024773,2]
[391574221,1760670633514,-500.0,0.00024773,2]
[391574222,1760670633529,-150.0,0.00024773,4]
[391574223,1760670633539,-150.0,0.00024774,4]
[391574224,1760670633548,-150.0,0.00024774,4]
[391574225,1760670633558,-150.0,0.00024777,4]
[391574226,1760670633568,-150.0,0.00024781,4]
[391574227,1760670633578,-150.0,0.00024782,4]
[391574228,1760670633588,-150.0,0.00024791,4]
[391574229,1760670633597,-150.0,0.00024802,4]
[391574230,1760670633607,-150.0,0.00024802,4]
[391574231,1760670633616,-150.0,0.0002481,4]
[391574232,1760670633626,-150.0,0.00024811,4]
[391574233,1760670633635,-150.0,0.00024812,4]
[391574234,1760670633645,-150.0,0.00024819,4]
[391574235,1760670633654,-150.0,0.00024825,4]
[391574236,1760670633664,-150.0,0.00024832,4]
[391574237,1760670633674,-150.0,0.00024832,4]
[391574238,1760670633684,-150.0,0.00024842,4]
[391574239,1760670633694,-150.0,0.00024844,4]
[391574240,1760670633704,-150.0,0.0002485,4]
[391574241,1760670633713,-150.0,0.00024858,4]
[391574242,1760670633722,-150.0,0.00024872,4]
[391574243,1760670633732,-150.0,0.00024873,4]
[391574244,1760670633742,-150.0,0.00024874,4]
[391574245,1760670633751,-150.0,0.00024886,4]
[391574246,1760670633761,-150.0,0.00024889,4]
[391574247,1760670633771,-150.0,0.00024891,4]
[391574248,1760670633780,-150.0,0.00024891,4]
[391574249,1760670633789,-150.0,0.00024891,4]
[391574250,1760670633799,-150.0,0.00024896,4]
[391574251,1760670633808,-150.0,0.00024904,4]
[391574252,1760670633817,-150.0,0.00024907,4]
[391574253,1760670633827,-150.0,0.00024925,4]
[391574254,1760670633837,-150.0,0.00024926,4]
[391574255,1760670633846,-150.0,0.00024928,4]
[391574256,1760670633855,-500.0,0.00024932,2]
[391574257,1760670633865,-150.0,0.00024935,4]
[391574258,1760670633874,-150.0,0.00024946,4]
[391574259,1760670633884,-150.0,0.00024946,4]
[391574260,1760670633893,-150.0,0.00024949,4]
[391574261,1760670633903,-150.0,0.00024949,4]
[391574262,1760670633914,-1425.0,0.00024952,2]
[391574263,1760670633924,-150.0,0.00024958,4]
[391574264,1760670633934,-150.0,0.00024962,4]
[391574265,1760670633947,-150.0,0.00024965,4]
[391574266,1760670633958,-150.0,0.00024966,4]
[391574267,1760670633968,-150.0,0.00024969,4]
[391574268,1760670633978,-150.0,0.0002498,4]
[391574269,1760670633992,-150.0,0.00024992,4]
[391574270,1760670634003,-150.0,0.00024996,4]
[391574271,1760670634013,-150.0,0.00025005,4]
[391574272,1760670634024,-150.0,0.00025007,4]
[391574273,1760670634034,-150.0,0.00025007,4]
[391574274,1760670634045,-150.0,0.00025015,4]
[391574275,1760670634055,-150.0,0.00025018,4]
[391574276,1760670634064,-150.0,0.00025025,4]
[391574277,1760670634074,-150.0,0.00025027,4]
[391574278,1760670634084,-150.0,0.00025031,4]
[391574279,1760670634094,-150.0,0.00025034,4]
[391574280,1760670634103,-150.0,0.00025038,4]
[391574281,1760670634113,-150.0,0.00025043,4]
[391574282,1760670634124,-150.0,0.00025058,4]
[391574283,1760670634135,-150.0,0.00025058,4]
[391574284,1760670634145,-150.0,0.00025066,4]
[391574285,1760670634155,-150.0,0.00025066,4]
[391574286,1760670634165,-150.0,0.00025082,4]
[391574287,1760670634177,-150.0,0.00025087,4]
[391574288,1760670634187,-150.0,0.00025089,4]
[391574289,1760670634197,-150.0,0.0002509,4]
[391574290,1760670634207,-150.0,0.0002509,4]
[391574291,1760670634218,-150.0,0.00025092,4]
[391574292,1760670634228,-150.0,0.00025093,4]
[391574293,1760670634239,-545.0,0.00025097,2]
[391574294,1760670634249,-10115.48762669,0.000251,2]
[391574295,1760670634263,-150.0,0.00025114,4]
[391574296,1760670634273,-150.0,0.00025114,4]
[391574297,1760670634284,-150.0,0.00025119,4]
[391574298,1760670634295,-150.0,0.00025121,4]
[391574299,1760670634311,-150.0,0.00025124,4]
[391574300,1760670634321,-150.0,0.00025124,4]
[391574301,1760670634332,-150.0,0.00025125,4]
[391574302,1760670634342,-150.0,0.00025134,4]
[391574303,1760670634352,-150.0,0.00025141,4]
[391574304,1760670634362,-150.0,0.0002515,4]
[391574305,1760670634372,-150.0,0.00025156,4]
[391574306,1760670634382,-150.0,0.00025159,4]
[391574307,1760670634392,-150.0,0.00025159,4]
[391574308,1760670634402,-150.0,0.00025162,4]
[391574309,1760670634413,-150.0,0.00025181,4]
[391574310,1760670634423,-150.0,0.00025182,4]
[391574311,1760670634433,-150.0,0.00025182,4]
[391574312,1760670634443,-150.0,0.0002519,4]
[391574313,1760670634452,-150.0,0.00025192,4]
[391574314,1760670634462,-150.0,0.00025195,4]
[391574315,1760670634472,-168.87,0.00025197,2]
[391574316,1760670634481,-150.0,0.00025198,4]
[391574317,1760670634491,-150.0,0.00025212,4]
[391574318,1760670634502,-150.0,0.00025218,4]
[391574319,1760670634512,-150.0,0.00025226,4]
[391574320,1760670634521,-150.0,0.00025234,4]
[391574321,1760670634531,-150.0,0.00025234,4]
[391574322,1760670634541,-150.0,0.00025236,4]
[391574323,1760670634551,-150.0,0.0002524,4]
[391574324,1760670634561,-150.0,0.0002524,4]
[391574325,1760670634571,-150.0,0.00025242,4]
[391574326,1760670634580,-150.0,0.00025248,4]
[391574327,1760670634589,-150.0,0.00025253,4]
[391574328,1760670634599,-150.0,0.00025259,4]
[391574329,1760670634609,-150.0,0.00025266,4]
[391574330,1760670634619,-150.0,0.00025273,4]
[391574331,1760670634628,-150.0,0.00025275,4]
[391574332,1760670634638,-150.0,0.0002528,4]
[391574333,1760670634647,-150.0,0.00025292,4]
[391574334,1760670634658,-150.0,0.00025299,4]
[391574335,1760670634669,-150.0,0.00025299,4]
[391574336,1760670634679,-150.0,0.00025302,4]
[391574337,1760670634688,-150.0,0.00025304,4]
[391574338,1760670634698,-150.0,0.00025306,4]
[391574339,1760670634707,-579.97418217,0.00025309,2]
[391574340,1760670634717,-887.64831442,0.00025309,2]
[391574342,1760670637618,-112.35168558,0.00025309,2]
[391574343,1760670637628,-824.74831462,0.00025309,2]
[391574344,1760670637640,-175.25168538,0.00025309,2]
[391574345,1760670637650,-269.17583591,0.00025309,2]
[391574346,1760670637660,-592.92753819,0.00025309,2]
[391574347,1760670637672,-407.07246181,0.00025309,2]
[391574348,1760670637684,-202.70289389,0.00025309,2]
[391574349,1760670637694,-474.8246399,0.00025309,2]
[391574350,1760670637707,-525.1753601,0.00025309,2]
[391574351,1760670637716,-773.88964044,0.00025309,2]
[391574352,1760670637728,-226.11035956,0.00025309,2]
[391574353,1760670637738,-942.98670394,0.00025309,2]
[391574354,1760670637750,-57.01329606,0.00025309,2]
[391574355,1760670637760,-1000.0,0.00025309,2]
[391574356,1760670637769,-359.26486982,0.00025309,2]
[391574357,1760670637785,-1103.25069592,0.00025309,2]
[391574394,1760670639783,-7748.83242411,0.00025309,2]
[391574396,1760670639794,-1000.0,0.00025309,2]
[391574398,1760670639804,-1000.0,0.00025309,2]
[391574400,1760670639813,-1000.0,0.00025309,2]
[391574402,1760670639823,-393.36001118,0.00025309,2]
[391574404,1760670639833,-322.6107,0.00025309,2]
[391574407,1760670639843,-695.39793187,0.00025309,2]
[391574409,1760670639853,-1000.0,0.00025309,2]
[391574411,1760670639862,-1000.0,0.00025309,2]
[391574413,1760670639871,-1000.0,0.00025309,2]
[391574415,1760670639881,-1000.0,0.00025309,2]
[391574417,1760670639891,-1000.0,0.00025309,2]
[391574419,1760670639900,-1039.39304221,0.00025309,2]
[391574421,1760670639910,-3000.0,0.00025309,2]
[391574423,1760670639919,-3000.0,0.00025309,2]
[391574425,1760670639929,-2784.78705056,0.00025309,2]
[391574427,1760670639941,-267.46074303,0.00025309,2]
[391574429,1760670639951,-150.0,0.00025314,4]
[391574431,1760670639960,-150.0,0.00025326,4]
[391574433,1760670639970,-150.0,0.00025335,4]
[391574435,1760670639979,-150.0,0.00025342,4]
[391574437,1760670639989,-150.0,0.00025342,4]
[391574439,1760670639999,-150.0,0.00025342,4]
[391574441,1760670640008,-188.238,0.0002535,9]
[391574443,1760670640018,-696.711,0.0002535,9]
[391574445,1760670640028,-150.0,0.00025352,4]
[391574447,1760670640037,-150.0,0.00025356,4]
[391574449,1760670640047,-150.0,0.00025357,4]
[391574453,1760670640057,-150.0,0.00025357,4]
[391574456,1760670640067,-150.0,0.00025359,4]
[391574459,1760670640077,-9552.16786547,0.00025364,2]
[391574462,1760670640087,-150.0,0.00025366,4]
[391574465,1760670640096,-150.0,0.00025372,4]
[391574468,1760670640106,-150.0,0.00025379,4]
[391574471,1760670640116,-150.0,0.00025379,4]
[391574474,1760670640126,-150.0,0.00025391,4]
[391574477,1760670640135,-150.0,0.00025393,4]
[391574480,1760670640145,-150.0,0.00025396,4]
[391574483,1760670640154,-150.0,0.00025405,4]
[391574485,1760670640163,-150.0,0.0002541,4]
[391574488,1760670640173,-150.0,0.00025415,4]
[391574492,1760670640185,-150.0,0.00025415,4]
[391574495,1760670640195,-150.0,0.00025419,4]
[391574498,1760670640204,-9905.5980765,0.00025419,2]
[391574501,1760670640214,-150.0,0.00025426,4]
[391574504,1760670640224,-150.0,0.00025427,4]
[391574507,1760670640234,-150.0,0.00025429,4]
[391574510,1760670640243,-168.87,0.00025435,2]
[391574513,1760670640259,-2751.0,0.00025437,2]
[391574516,1760670640269,-715.23276728,0.00025445,2]
[391574519,1760670640279,-200.0,0.00025446,2]
[391574522,1760670640289,-150.0,0.00025451,4]
[391574525,1760670640299,-1000.0,0.00025454,2]
[391574528,1760670640308,-150.0,0.00025458,4]
[391574531,1760670640318,-150.0,0.00025459,4]
[391574534,1760670640329,-150.0,0.00025463,4]
[391574537,1760670640340,-610.0,0.00025464,2]
[391574540,1760670640350,-24120.127877,0.00025464,3]
[391574543,1760670640360,-150.0,0.00025467,4]
[391574546,1760670640370,-150.0,0.00025468,4]
[391574550,1760670640381,-150.0,0.00025474,4]
[391574553,1760670640390,-150.0,0.00025474,4]
[391574556,1760670640400,-10272.10520533,0.00025474,2]
[391574560,1760670640411,-150.0,0.00025489,4]
[391574563,1760670640421,-150.0,0.00025491,4]
[391574566,1760670640431,-150.0,0.00025493,4]
[391574569,1760670640442,-150.0,0.00025495,4]
[391574572,1760670640452,-1908.84249697,0.00025506,2]
[391574575,1760670640462,-150.0,0.00025506,4]
[391574578,1760670640472,-150.0,0.00025517,4]
[391574581,1760670640482,-150.0,0.00025519,4]
[391574584,1760670640492,-150.0,0.00025523,4]
[391574587,1760670640502,-150.0,0.00025523,4]
[391574590,1760670640511,-150.0,0.00025526,4]
[391574593,1760670640521,-10652.17309792,0.00025529,2]
[391574596,1760670640531,-150.0,0.00025529,4]
[391574599,1760670640540,-150.0,0.00025532,4]
[391574602,1760670640550,-150.0,0.00025532,4]
[391574605,1760670640560,-10115.48762669,0.00025536,2]
[391574608,1760670640569,-150.0,0.00025545,4]
[391574611,1760670640578,-150.0,0.0002555,4]
[391574614,1760670640588,-150.0,0.0002556,4]
[391574617,1760670640597,-150.0,0.00025571,4]
[391574620,1760670640607,-150.0,0.00025571,4]
[391574623,1760670640616,-150.0,0.00025571,4]
[391574626,1760670640625,-150.0,0.00025571,4]
[391574629,1760670640634,-500.87858746,0.00025573,2]
[391574632,1760670640644,-505.47647784,0.00025573,2]
[391574636,1760670640654,-500.56758679,0.00025573,2]
[391574639,1760670640663,-500.0,0.00025573,2]
[391574642,1760670640673,-150.0,0.00025581,4]
[391574645,1760670640682,-150.0,0.00025584,4]
[391574648,1760670640692,-11046.30350255,0.00025584,2]
[391574651,1760670640702,-24120.127877,0.00025586,3]
[391574654,1760670640712,-150.0,0.0002559,4]
[391574657,1760670640722,-150.0,0.0002559,4]
[391574660,1760670640732,-150.0,0.00025592,4]
[391574663,1760670640742,-150.0,0.00025593,4]
[391574666,1760670640751,-150.0,0.00025595,4]
[391574670,1760670640760,-150.0,0.0002561,4]
[391574673,1760670640771,-150.0,0.00025612,4]
[391574676,1760670640782,-5253.17,0.00025621,2]
[391574679,1760670640791,-150.0,0.00025622,4]
[391574682,1760670640801,-150.0,0.00025624,4]
[391574685,1760670640811,-150.0,0.00025626,4]
[391574687,1760670640821,-11455.01673214,0.00025639,2]
[391574689,1760670640832,-150.0,0.00025643,4]
[391574691,1760670640842,-150.0,0.00025647,4]
[391574693,1760670640851,-150.0,0.00025648,4]
[391574695,1760670640861,-150.0,0.00025648,4]
[391574697,1760670640871,-150.0,0.00025654,4]
[391574700,1760670640881,-150.0,0.0002566,4]
[391574702,1760670640891,-150.0,0.00025661,4]
[391574705,1760670640900,-150.0,0.00025667,4]
[391574708,1760670640910,-150.0,0.00025667,4]
[391574711,1760670640920,-150.0,0.00025673,4]
[391574714,1760670640929,-150.0,0.00025678,4]
[391574717,1760670640940,-150.0,0.00025693,4]
[391574720,1760670640950,-11878.85235123,0.00025694,2]
[391574723,1760670640959,-150.0,0.00025699,4]
[391574726,1760670640969,-150.0,0.00025704,4]
[391574729,1760670640979,-150.0,0.00025707,4]
[391574732,1760670640988,-150.0,0.00025707,4]
[391574735,1760670640998,-150.0,0.00025716,4]
[391574738,1760670641008,-24120.127877,0.0002572,3]
[391574741,1760670641017,-150.0,0.00025723,4]
[391574744,1760670641027,-150.0,0.00025727,4]
[391574748,1760670641037,-150.0,0.0002573,4]
[391574750,1760670641047,-281.46,0.0002573,2]
[391574754,1760670641058,-150.0,0.00025732,4]
[391574757,1760670641067,-150.0,0.00025735,4]
[391574761,1760670641077,-150.0,0.00025738,4]
[391574764,1760670641087,-150.0,0.00025739,4]
[391574766,1760670641096,-500.38572349,0.00025742,2]
[391574768,1760670641106,-501.29859111,0.00025742,2]
[391574771,1760670641116,-2852.29912338,0.00025749,2]
[391574774,1760670641125,-164.77,0.00025758,2]
[391574777,1760670641135,-150.0,0.0002576,4]
[391574780,1760670641145,-150.0,0.00025765,4]
[391574783,1760670641155,-150.0,0.00025765,4]
[391574786,1760670641164,-150.0,0.00025766,4]
[391574789,1760670641173,-150.0,0.00025777,4]
[391574792,1760670641184,-150.0,0.00025778,4]
[391574794,1760670641193,-150.0,0.00025786,4]
[391574796,1760670641203,-150.0,0.00025794,4]
[391574798,1760670641212,-150.0,0.00025797,4]
[391574800,1760670641221,-150.0,0.00025799,4]
[391574802,1760670641231,-150.0,0.00025811,4]
[391574804,1760670641244,-150.0,0.00025811,4]
[391574806,1760670641260,-150.0,0.00025815,4]
[391574809,1760670641270,-150.0,0.00025823,4]
[391574812,1760670641279,-150.0,0.00025823,4]
[391574815,1760670641289,-150.0,0.00025827,4]
[391574818,1760670641301,-150.0,0.00025827,4]
[391574821,1760670641311,-150.0,0.00025839,4]
[391574824,1760670641321,-150.0,0.00025841,4]
[391574827,1760670641330,-1908.84249695,0.00025848,2]
[391574831,1760670641343,-150.0,0.00025849,4]
[391574835,1760670641354,-150.0,0.00025854,4]
[391574838,1760670641363,-150.0,0.00025858,4]
[391574841,1760670641373,-150.0,0.0002586,4]
[391574843,1760670641382,-150.0,0.00025875,4]
[391574847,1760670641392,-150.0,0.00025882,4]
[391574850,1760670641403,-150.0,0.00025882,4]
[391574880,1760670641412,-150.0,0.00025883,4]
[391574882,1760670641679,-150.0,0.00025889,4]
[391574884,1760670641691,-150.0,0.00025892,4]
[391574886,1760670641701,-150.0,0.00025893,4]
[391574887,1760670641711,-150.0,0.00025894,4]
[391574889,1760670641720,-150.0,0.00025903,4]
[391574891,1760670641730,-150.0,0.0002592,4]
[391574893,1760670641740,-150.0,0.00025927,4]
[391574895,1760670641750,-1425.0,0.00025929,2]
[391574897,1760670641760,-150.0,0.00025931,4]
[391574898,1760670641770,-150.0,0.0002594,4]
[391574900,1760670641780,-150.0,0.0002594,4]
[391574902,1760670641790,-150.0,0.00025947,4]
[391574904,1760670641800,-150.0,0.0002595,4]
[391574906,1760670641810,-150.0,0.00025951,4]
[391574907,1760670641820,-150.0,0.00025955,4]
[391574909,1760670641830,-150.0,0.00025955,4]
[391574911,1760670641840,-150.0,0.00025961,4]
[391574913,1760670641850,-150.0,0.00025965,4]
[391574914,1760670641861,-150.0,0.00025968,4]
[391574916,1760670641871,-150.0,0.0002597,4]
[391574918,1760670641881,-10115.48762669,0.00025971,2]
[391574920,1760670641891,-150.0,0.00025981,4]
[391574922,1760670641901,-1000.0,0.00025983,2]
[391574924,1760670641911,-150.0,0.00025994,4]
[391574926,1760670641921,-150.0,0.00025998,4]
[391574927,1760670641931,-150.0,0.00025998,4]
[391574929,1760670641941,-150.0,0.00026001,4]
[391574931,1760670641952,-150.0,0.00026008,4]
[391574933,1760670641962,-150.0,0.00026012,4]
[391574935,1760670641972,-150.0,0.00026027,4]
[391574937,1760670641982,-150.0,0.00026027,4]
[391574938,1760670641992,-150.0,0.00026027,4]
[391574940,1760670642003,-150.0,0.00026027,4]
[391574942,1760670642013,-150.0,0.00026027,4]
[391574944,1760670642023,-150.0,0.00026027,4]
[391574946,1760670642033,-150.0,0.00026027,4]
[391574948,1760670642042,-150.0,0.00026027,4]
[391574950,1760670642052,-715.23276726,0.00026042,2]
[391574952,1760670642061,-150.0,0.00026043,4]
[391574954,1760670642071,-150.0,0.00026047,4]
[391574956,1760670642082,-150.0,0.00026054,4]
[391574957,1760670642092,-150.0,0.00026057,4]
[391574959,1760670642103,-150.0,0.00026057,4]
[391574961,1760670642113,-150.0,0.00026061,4]
[391574963,1760670642122,-501.00406977,0.00026069,2]
[391574965,1760670642132,-503.48936147,0.00026069,2]
[391574967,1760670642142,-150.0,0.00026074,4]
[391574969,1760670642152,-150.0,0.00026085,4]
[391574970,1760670642162,-150.0,0.00026087,4]
[391574972,1760670642172,-150.0,0.0002609,4]
[391574974,1760670642182,-150.0,0.00026094,4]
[391574976,1760670642192,-150.0,0.00026099,4]
[391574978,1760670642202,-150.0,0.00026099,4]
[391574980,1760670642212,-150.0,0.00026104,4]
[391574982,1760670642222,-150.0,0.00026104,4]
[391574983,1760670642232,-150.0,0.00026108,4]
[391574985,1760670642242,-150.0,0.00026115,4]
[391574987,1760670642253,-150.0,0.00026115,4]
[391574989,1760670642267,-500.62939821,0.00026121,2]
[391574990,1760670642277,-150.0,0.00026124,4]
[391574991,1760670642287,-150.0,0.00026128,4]
[391574992,1760670642298,-150.0,0.00026135,4]
[391574993,1760670642308,-167.92,0.00026146,7]
[391574994,1760670642317,-150.0,0.00026152,4]
[391574995,1760670642328,-150.0,0.00026161,4]
[391574996,1760670642338,-150.0,0.00026162,4]
[391574998,1760670642347,-150.0,0.00026162,4]
[391575001,1760670642359,-150.0,0.00026166,4]
[391575003,1760670642369,-150.0,0.00026172,4]
[391575005,1760670642379,-150.0,0.00026173,4]
[391575007,1760670642389,-150.0,0.00026173,4]
[391575009,1760670642399,-150.0,0.0002618,4]
[391575011,1760670642408,-1908.84249695,0.00026189,2]
[391575013,1760670642418,-150.0,0.00026194,4]
[391575015,1760670642428,-150.0,0.00026197,4]
[391575017,1760670642440,-150.0,0.00026201,4]
[391575019,1760670642450,-1425.0,0.00026205,2]
[391575021,1760670642462,-150.0,0.00026206,4]
[391575023,1760670642472,-150.0,0.00026214,4]
[391575025,1760670642482,-150.0,0.00026215,4]
[391575028,1760670642491,-150.0,0.00026227,4]
[391575030,1760670642502,-150.0,0.00026228,4]
[391575033,1760670642512,-150.0,0.00026231,4]
[391575035,1760670642522,-150.0,0.00026231,4]
[391575037,1760670642533,-24120.127877,0.00026239,3]
[391575039,1760670642543,-150.0,0.0002624,4]
[391575041,1760670642552,-4520.01,0.0002624,2]
[391575043,1760670642563,-150.0,0.00026244,4]
[391575045,1760670642573,-150.0,0.00026244,4]
[391575047,1760670642583,-150.0,0.00026256,4]
[391575049,1760670642593,-150.0,0.00026258,4]
[391575051,1760670642603,-4919.78,0.00026259,2]
[391575053,1760670642613,-150.0,0.00026261,4]
[391575056,1760670642624,-150.0,0.00026269,4]
[391575058,1760670642634,-150.0,0.00026276,4]
[391575060,1760670642643,-150.0,0.00026278,4]
[391575062,1760670642653,-150.0,0.00026289,4]
[391575064,1760670642663,-150.0,0.0002629,4]
[391575066,1760670642673,-150.0,0.0002629,4]
[391575068,1760670642683,-250.62148167,0.00026291,2]
[391575070,1760670642693,-150.0,0.00026295,4]
[391575072,1760670642702,-879.50225953,0.00026312,2]
[391575074,1760670642712,-150.0,0.00026316,4]
[391575076,1760670642721,-150.0,0.00026317,4]
[391575078,1760670642731,-150.0,0.0002632,4]
[391575080,1760670642741,-150.0,0.00026323,4]
[391575083,1760670642752,-150.0,0.00026325,4]
[391575085,1760670642762,-150.0,0.00026328,4]
[391575087,1760670642772,-150.0,0.00026332,4]
[391575089,1760670642782,-152.0,0.00026339,4]
[391575091,1760670642792,-150.0,0.00026339,4]
[391575093,1760670642802,-150.0,0.00026348,4]
[391575095,1760670642812,-150.0,0.00026348,4]
[391575097,1760670642822,-150.0,0.00026351,4]
[391575099,1760670642832,-150.0,0.00026355,4]
[391575101,1760670642842,-150.0,0.00026362,4]
[391575103,1760670642852,-150.0,0.00026377,4]
[391575105,1760670642861,-150.0,0.00026381,4]
[391575107,1760670642871,-1825.378,0.00026386,2]
[391575109,1760670642881,-150.0,0.00026388,4]
[391575112,1760670642891,-150.0,0.00026388,4]
[391575114,1760670642901,-500.0,0.00026388,7]
[391575116,1760670642911,-515.39,0.00026388,7]
[391575118,1760670642920,-500.0,0.00026388,7]
[391575120,1760670642930,-500.0,0.00026388,7]
[391575122,1760670642941,-500.0,0.00026388,7]
[391575124,1760670642950,-500.0,0.00026388,7]
[391575126,1760670642959,-500.0,0.00026388,7]
[391575129,1760670642969,-500.0,0.00026388,7]
[391575132,1760670642979,-500.0,0.00026388,7]
[391575135,1760670642989,-500.0,0.00026388,7]
[391575138,1760670642998,-500.0,0.00026388,7]
[391575141,1760670643007,-500.0,0.00026388,7]
[391575144,1760670643016,-506.49,0.00026388,7]
[391575147,1760670643026,-500.0,0.00026388,7]
[391575149,1760670643035,-350.61,0.00026388,7]
[391575151,1760670643045,-150.0,0.00026394,4]
[391575153,1760670643053,-150.0,0.00026395,4]
[391575155,1760670643062,-150.0,0.00026401,4]
[391575157,1760670643072,-150.0,0.00026406,4]
[391575159,1760670643081,-150.0,0.00026406,4]
[391575161,1760670643090,-10115.48762669,0.00026407,2]
[391575163,1760670643100,-150.0,0.00026408,4]
[391575165,1760670643110,-150.0,0.00026412,4]
[391575167,1760670643119,-382.47166932,0.00026424,2]
[391575169,1760670643129,-150.0,0.00026428,4]
[391575172,1760670643139,-150.0,0.0002643,4]